Cogmind - Beta 17 @@@ ROGUE MODE // 2026.07.02 @ 14:43:40 Player: 3.14 Result: Destroyed by H-77 Assassin with Coil Gun Performance ------------- Evolutions (7) 3500 Regions Visited (12) 2400 Robots Destroyed (183) 915 Value Destroyed (8128) 8128 Prototype IDs (37) 740 Alien Tech Used (0) 0 Bonus (15828) 15828 TOTAL SCORE: 31511 Bonus ------- Triggered High Security 500 High Alert Combat Kills 1338 Follower Combat Kills 748 Prayed to X0-1V1 5000 Major X0-1V1 Interference 4750 Subatomizer Sterilization 3000 Registered with UFD 300 Met Optimus in HQ 500 Friendly Fire -308 Cogmind --------- Core Integrity 0/1100 Matter 2/300 Energy 1700/1700 System Corruption 12% Temperature Cool (-666) Movement Core (50) Location -3/Research Parts ------- > --- POWER (3) -------- (None) > --- PROPULSION (2) --- (None) > --- UTILITY (14) ----- (None) > --- WEAPON (3) ------- (None) > --- INVENTORY (5) ---- Particle Reactor Medium Treads Biometal Medium Treads Armored Heavy Treads Peak State ------------ > --- POWER ------------ Light Antimatter Reactor Reinforced Antimatter Reactor Light Particle Reactor > --- PROPULSION ------- Overtuned Huge Scrapsphere > --- UTILITY ---------- Scrap Suit Advanced Cooling System Large Storage Unit Experimental Terrain Scanner Terrain Scan Processor Improved Targeting Computer Improved Armor Integrity Analyzer Quantum Capacitor Improved Transmission Jammer Layered Medium Armor Plating Graphene Brace X0-1V1's Piety Tracker > --- WEAPON ----------- Heavy Hardcell Cannon Heavy Hardcell Cannon Heavy Hardcell Cannon > --- INVENTORY -------- Micro Fission Core Particle Reactor High-density Centrium Wheel Advanced Cooling System Advanced Coolant Injector Advanced Trap Scanner Experimental Signal Interpreter Improved Targeting Computer EM Shield Matter Neutralizer Nova Cannon Advanced KE Penetrator Advanced KE Penetrator Advanced KE Penetrator Heavy Scimitar of Distortion [Rating: 178] Favorites ----------- Power Light Angular Momentum Engine Engine Light Angular Momentum Engine Power Core Light Fission Core Reactor Light Antimatter Reactor Propulsion Light Treads Treads Light Treads Leg Enhanced Biometal Leg Wheel Overtuned Huge Scrapsphere Flight Unit Biomechanical Wings Utility Large Storage Unit Device X0-1V1's Piety Tracker Storage Large Storage Unit Processor Improved Melee Analysis Suite Hackware System Shield Protection Enhanced Scrap Shield Weapon Subdweller Laser Energy Gun Subdweller Laser Energy Cannon Matter Neutralizer Ballistic Gun Overtuned Coil Gun Ballistic Cannon Heavy Hardcell Cannon Launcher Precision Rocket Launcher Special Weapon Mining Laser Slashing Weapon Heavy Scimitar of Distortion Piercing Weapon Lance Build | -11 -10 -10 -9 -9 -6 -5 -5 -5 -4 -4 -4 -3 ------- Run | Yrd Mat Sub Rec Scr Fac Fac Upp Upp Fac Was Fac Res Slots Evolved 14 | . . . . . 8 2 . . 2 . . 2 Power 1 | . . . . . 1 . . . . . . . Propulsion . | . . . . . . . . . . . . . Utility 12 | . . . . . 7 2 . . 1 . . 2 Weapon 1 | . . . . . . . . . 1 . . . Parts Attached 217 | 7 9 16 2 4 45 37 3 2 1 2 36 53 Power 29 | 1 1 2 . 1 6 4 1 1 . . 5 7 Engine 7 | 1 1 2 . 1 1 . 1 . . . . . Core 10 | . . . . . 4 3 . 1 . . 1 1 Reactor 12 | . . . . . 1 1 . . . . 4 6 Propulsion 22 | 2 . 3 1 . 6 6 . . . . . 4 Treads 7 | 2 . 3 1 . . . . . . . . 1 Leg 3 | . . . . . . . . . . . . 3 Wheel 5 | . . . . . 2 3 . . . . . . Hover . | . . . . . . . . . . . . . Flight 7 | . . . . . 4 3 . . . . . . Utility 117 | 2 5 4 . 3 24 22 2 . 1 1 21 32 Device 58 | 1 2 2 . 1 13 12 1 . . . 12 14 Storage 11 | 1 2 . . 2 1 2 . . . . 2 1 Processor 23 | . . . . . 6 3 . . . 1 3 10 Hackware 5 | . . . . . 1 . . . . . 3 1 Protection 20 | . 1 2 . . 3 5 1 . 1 . 1 6 Artifact . | . . . . . . . . . . . . . Weapon 49 | 2 3 7 1 . 9 5 . 1 . 1 10 10 Energy Gun 16 | 2 1 2 1 . 3 2 . 1 . . 4 . Energy Cannon 5 | . . 2 . . . . . . . . 2 1 Ballistic Gun 14 | . 2 1 . . 3 2 . . . 1 . 5 Ballistic Cannon 5 | . . . . . . . . . . . 2 3 Launcher 4 | . . 1 . . 2 . . . . . . 1 Special Weapon 4 | . . 1 . . 1 1 . . . . 1 . Impact Weapon . | . . . . . . . . . . . . . Slashing Weapon 1 | . . . . . . . . . . . 1 . Piercing Weapon . | . . . . . . . . . . . . . Special Melee Weapon . | . . . . . . . . . . . . . Unidentified Prototypes 24 | . 1 1 . . 3 1 1 . . . 7 10 Parts Lost 63 | . 2 2 . . 16 3 2 1 . 2 11 24 Power 18 | . 1 . . . 4 1 1 1 . . 4 6 Propulsion 6 | . . 1 . . 2 1 . . . . . 2 Utility 24 | . 1 . . . 6 1 . . . 1 5 10 Weapon 15 | . . 1 . . 4 . 1 . . 1 2 6 Highest Loss Streak 9 | . 2 1 . . 4 2 1 1 . 1 6 9 To Critical Strikes . | . . . . . . . . . . . . . Average Backups 11 | 3 9 12 11 14 7 10 13 14 13 13 13 9 Power . | . 1 . . . . . . . . . . 1 Propulsion 1 | 1 2 1 . 1 . . . . . . . 1 Utility 4 | . 2 2 3 4 3 7 11 12 11 11 9 4 Weapon 4 | 1 3 7 8 8 2 2 1 1 1 1 2 2 Tool/Special . | . . . . . . . . . . . . . Unused Backups 54 | . 2 4 1 9 15 4 2 . . . 1 16 Power 5 | . . 1 . 1 1 . . . . . . 2 Propulsion 12 | . 2 . . . 1 2 . . . . . 7 Utility 13 | . . 2 1 . 5 1 1 . . . 1 2 Weapon 22 | . . 1 . 8 6 1 1 . . . . 5 Tool/Special 2 | . . . . . 2 . . . . . . . Average Slot Usage (%) 82 | . 99 97 100 93 63 65 76 81 80 73 74 63 Engine 6 | . 14 12 12 12 1 . . 5 5 4 2 . Core 1 | . . . . . 5 7 5 3 5 4 2 1 Reactor 2 | . . . . . . 1 5 5 5 4 6 7 Treads 13 | . 27 25 25 25 2 . . . . . . 1 Wheel 1 | . . . . . 2 3 5 5 5 4 4 1 Device 17 | . 7 16 25 15 18 17 35 38 35 30 23 16 Storage 9 | . 14 12 12 14 3 4 5 5 5 4 7 2 Processor 5 | . . . . . 10 11 2 . . 3 8 15 Protection 3 | . 7 4 . . 3 6 5 5 10 4 5 5 Energy Gun 11 | . 13 19 19 25 2 . 1 4 5 4 4 . Ballistic Gun 3 | . 14 1 . . 5 6 7 5 5 5 . 2 Peak Build Rating 178 | 7 20 27 27 31 72 106 107 108 107 115 152 178 Average Rating 56 | 5 8 23 26 27 50 75 99 103 107 106 115 117 On Entrance 58 | . 7 20 26 27 27 12 97 107 104 107 96 131 Avg Prop Armor Cover (%) 1 | . . . . . . 1 . . . . . . Naked Turns 46 | . . . . . 6 . . . . . . 40 Heaviest Build 158 | 14 30 55 35 78 116 109 97 97 89 95 152 158 Greatest Support 70 | 40 40 40 40 40 40 20 20 20 20 20 20 70 Greatest Overweight (x) 7 | . . 1 . 1 5 5 4 4 4 4 7 7 Average Overweight (x) 1 | . . . . . . 1 4 3 4 3 4 2 Largest Inventory Capacity 25 | 8 15 15 15 20 25 15 15 15 15 15 15 15 Average Capacity 14 | 7 13 15 15 16 15 12 15 15 15 15 15 10 Most Carried 20 | 6 13 15 15 20 19 15 15 15 14 15 15 15 Average Carried 12 | 4 9 14 14 15 8 11 14 15 14 14 14 9 Final Capacity 20 | 8 15 15 15 20 5 15 15 15 15 15 15 5 Final Carried 20 | 6 13 13 15 20 5 15 15 15 14 15 15 5 Scrap Suit Usage (%) 9 | . . . . 11 22 9 . 24 88 1 29 3 Parts Cannibalized 22 | . . . . . . 4 . 1 1 . 12 4 Class Distribution -------------------- 42% | Mutant 33% | Scavenger-Mutant 6% | Scavenger-Scrapper 4% | Scavenger-Gunner 4% | Scavenger-Tank 3% | Scrapper Dominant Class ---------------- Mutant | -10/Materials Mutant | -10/Subcaves Scavenger-Mutant | -9/Recycling Mutant | -9/Scraptown Scavenger-Mutant | -6/Factory Scavenger-Scrapper | -5/Factory Scavenger-Mutant | -5/Upper Caves Scavenger-Mutant | -5/Upper Caves Scavenger-Mutant | -4/Factory Scavenger-Gunner | -4/Waste Scavenger-Tank | -4/Factory Scavenger-Mutant | -3/Research Resources | -11 -10 -10 -9 -9 -6 -5 -5 -5 -4 -4 -4 -3 ----------- Run | Yrd Mat Sub Rec Scr Fac Fac Upp Upp Fac Was Fac Res Matter Collected 6757 | 265 145 275 10 444 557 1138 558 64 . 913 701 1687 Remotely 1982 | . . . . . . 449 371 . . 904 . 258 Salvage Created 10147 | 119 386 545 53 . 1067 1556 714 13 . 699 825 4170 Parts 439 | 15 31 39 4 . 46 77 25 5 . 13 42 142 Haulers Intercepted 6 | . 1 . . . 1 2 . . . . 1 1 Recyclers Shooed 4 | 1 . . . . 1 . . . . . . 2 Parts Field Recycled . | . . . . . . . . . . . . . Retrieved Matter . | . . . . . . . . . . . . . Parts Self-Destructed 49 | . . 27 . . . . 19 3 . . . . Prevented . | . . . . . . . . . . . . . Parts Restored . | . . . . . . . . . . . . . Kills | -11 -10 -10 -9 -9 -6 -5 -5 -5 -4 -4 -4 -3 ------- Run | Yrd Mat Sub Rec Scr Fac Fac Upp Upp Fac Was Fac Res Combat Hostiles Destroyed 132 | . 12 16 . . 14 17 10 5 . 3 12 43 Melee 10 | . . . . . . 1 . . . . . 9 Guns 63 | . 12 8 . . 10 16 9 . . 2 1 5 Cannons 30 | . . 3 . . . . . . . . 8 19 AOE 18 | . . 4 . . 4 . 1 5 . . 1 3 Classes Destroyed 23 | 2 3 3 1 . 6 3 1 . . 1 2 1 Worker 7 | 1 . . . . 1 1 . . . . 2 2 Builder 11 | . . . . . 1 3 . . . . 1 6 Tunneler 7 | 5 . . . . . 1 . . . . . 1 Hauler 6 | . 1 . . . 1 2 . . . . 1 1 Recycler 14 | . . . 1 . 3 2 . . . . 1 7 Operator 2 | . . . . . . . . . . . 1 1 Turret 2 | . . 2 . . . . . . . . . . Swarmer 17 | . 6 4 . . 2 . . 5 . . . . Saboteur 2 | . . . . . . 1 . . . . . 1 Grunt 53 | . 6 6 . . 3 10 3 . . . 3 22 Brawler 9 | . . . . . 1 . 5 . . . . 3 Duelist 2 | . . . . . . . . . . . . 2 Protector 1 | . . . . . 1 . . . . . . . Sentry 8 | . . 1 . . 1 . 1 . . . 1 4 Demolisher 1 | . . . . . . 1 . . . . . . Specialist 1 | . . . . . 1 . . . . . . . Hunter 14 | . . . . . 2 2 . . . . 3 7 Programmer 14 | . . . . . 3 2 1 . . . 4 4 Behemoth 1 | . . . . . . . . . . . 1 . Compactor 3 | . . . . . . . . . . 3 . . Subdweller 6 | . . 6 . . . . . . . . . . Scrapoid 1 | . . . . . . 1 . . . . . . Decomposer 1 | . . . . . . . 1 . . . . . Samaritan 1 | . . . . . . . 1 . . . . . Thug 1 | . . . . . . 1 . . . . . . Best Kill Streak 9 | 2 3 6 1 . 5 7 3 5 . 1 6 9 Combat Bots Only 5 | . 3 4 . . 4 4 3 5 . 1 5 5 Max Kills in Single Turn 4 | 1 1 4 1 . 4 2 1 4 . 1 2 2 Gunslinging . | . . . . . . . . . . . . . Exploded 4 | . . 4 . . 4 . 1 4 . . 1 1 Melee 1 | . . . . . . 1 . . . . . 1 Uniques/NPCs Destroyed . | . . . . . . . . . . . . . Combat | -11 -10 -10 -9 -9 -6 -5 -5 -5 -4 -4 -4 -3 -------- Run | Yrd Mat Sub Rec Scr Fac Fac Upp Upp Fac Was Fac Res Hostile Shots Fired 1308 | . 58 79 2 . 300 113 43 8 . 1 198 506 Missed 437 | . 6 31 . . 111 31 13 4 . . 74 167 Hits 871 | . 52 48 2 . 189 82 30 4 . 1 124 339 Melee 18 | . . . . . 2 2 3 . . 1 . 10 Projectile 853 | . 52 48 2 . 187 80 27 4 . . 124 329 AOE 5 | . . 2 . . . 1 . . . . . 2 Critical Strikes 46 | . . 1 . . 5 11 1 . . 1 10 17 Actively Blocked 15 | . . . . . . 9 1 . . . 5 . Part Disruptions 2 | . . . . . 2 . . . . . . . Damage Taken 16467 | . 550 842 26 . 3023 1876 712 55 . 254 2319 6810 Core 3045 | . 69 88 . . 1013 102 48 . . . 110 1615 Absorbed by Shields 1017 | . . . . . . . . . . . 451 566 Redirected to Shielding 306 | . . . . . 7 88 . . . . . 211 Ignored by Resistances 753 | . . . . . . 219 106 . . 10 418 . Regen/Repaired (Parts) 396 | . 225 . . . . 40 . 1 10 . 94 26 Core Remaining (%) 66 | 100 . . . 62 2 . . 81 . . 88 . Volleys Fired 614 | 22 48 61 3 . 62 85 54 2 . 38 56 183 Largest 6 | 2 2 2 2 . 3 2 2 1 . 3 6 3 Hottest 420 | 80 60 140 120 . 188 81 107 43 . 142 420 204 Shots Fired 1018 | 23 94 93 4 . 98 164 85 2 . 93 121 241 Gun 695 | 23 94 59 4 . 95 163 84 . . 93 33 47 Cannon 282 | . . 16 . . . . . . . . 85 181 Launcher 25 | . . 4 . . 3 . 1 2 . . 2 13 Special 16 | . . 14 . . . 1 . . . . 1 . Kinetic 576 | . 56 11 . . 75 161 74 . . 55 36 108 Thermal 388 | 22 38 82 4 . 20 2 10 . . 38 52 120 Explosive 8 | . . . . . 3 . 1 2 . . 2 . Electromagnetic 44 | 1 . . . . . . . . . . 30 13 Robot Hit Streak 21 | 8 21 19 2 . 12 14 7 . . 9 10 19 Robot Miss Streak 5 | 2 4 1 2 . 5 5 4 . . 5 3 5 Penetration Max 2 | . . . . . 2 1 1 . . . 1 2 Secondary Targets 5 | . 1 . . . . 2 1 . . . . 1 Max Gunslinging Chain 1 | . 1 . . . . 1 1 . . . . 1 Capacitor 120 | . . . . . . . . . . . . 120 Shots Hit Robots 713 | 16 62 53 2 . 73 111 54 . . 64 68 210 Core Hits 348 | 6 27 26 1 . 51 45 24 5 . 15 25 123 Critical Kills 11 | . 1 1 . . 3 2 . . . . . 4 Critical Parts Destroyed 17 | . . . . . 1 13 . . . 1 . 2 Critical Strikes 44 | . 1 1 . . 4 16 4 . . 4 5 9 Burn 3 | . . . . . . . . . . 3 . . Meltdown 4 | . . 1 . . . . . . . . . 3 Destroy 29 | . 1 . . . 4 16 4 . . 1 . 3 Blast 5 | . . . . . . . . . . . 2 3 Corrupt 3 | . . . . . . . . . . . 3 . Melee Attacks 55 | . . . . . . . . . . . . 55 Impact . | . . . . . . . . . . . . . Slashing 55 | . . . . . . . . . . . . 55 Piercing . | . . . . . . . . . . . . . Sneak Attacks 4 | . . . . . . . . . . . . 4 Combat Hostiles . | . . . . . . . . . . . . . Follow-up Attacks . | . . . . . . . . . . . . . Damage Inflicted 28321 | 191 614 1488 85 . 2863 3885 2023 606 . 1657 4046 10863 Guns 11690 | 190 606 811 68 . 1491 3870 1586 . . 1657 301 1110 Cannons 9522 | . . 177 . . . . 160 . . . 3170 6015 Explosions 4307 | . . 500 . . 1349 . 277 606 . . 575 1000 Melee 2700 | . . . . . . . . . . . . 2700 Ramming 64 | 1 8 . 17 . 23 15 . . . . . . Kinetic 13802 | . 284 547 . . 1174 3870 1480 . . 1106 2121 3220 Thermal 8432 | 175 322 941 68 . 1065 . 358 . . 551 1047 3905 Explosive 2168 | . . . . . 601 . 185 606 . . 372 404 Electromagnetic 1117 | 15 . . . . . . . . . . 506 596 Impact . | . . . . . . . . . . . . . Slashing 2738 | . . . . . . . . . . . . 2738 Piercing . | . . . . . . . . . . . . . Highest Corruption 20 | . . 3 3 . 5 9 13 13 . 19 20 18 Average Corruption 8 | . . 3 3 . 2 5 9 13 . 12 17 9 Corruption Purged 5 | . . . . . . . . . . . 5 . Corruption Blocked 10 | . . . . . . . . . . . . 10 Effects 193 | . . 21 6 . 11 11 27 4 . 11 53 49 Message Errors 48 | . . 5 3 . 2 4 5 2 . 3 13 11 Matter Fused 46 | . . 6 1 . 2 2 10 1 . 2 11 11 Heat Flow Errors 24 | . . 3 . . 2 1 3 . . 1 6 8 Energy Discharges 16 | . . 3 . . 2 . 4 1 . 1 3 2 Parts Rejected 2 | . . . . . . . . . . . 1 1 Parts Fused 3 | . . 1 . . . . . . . . . 2 Data Loss (minor) 16 | . . . . . 1 . 3 . . 1 9 2 Data Loss (major) 13 | . . 1 1 . 1 2 1 . . 2 1 4 Misfires 6 | . . 1 . . . 1 . . . . 3 1 Alerts 3 | . . . 1 . . . . . . . 1 1 Misdirections 1 | . . . . . . . . . . . . 1 Weapon Failures 15 | . . 1 . . 1 1 1 . . 1 5 5 Overload Shots . | . . . . . . . . . . . . . Overflow Damage 958 | . . 9 . . 166 . 107 36 . . 147 493 Projectiles 454 | . . . . . . . 107 . . . 147 200 Explosions 211 | . . 9 . . 166 . . 36 . . . . Melee 293 | . . . . . . . . . . . . 293 Knockbacks 7 | . . . . . 1 . . . . . 2 4 Impact 1 | . . . . . 1 . . . . . . . Kinetic 6 | . . . . . . . . . . . 2 4 Secondary . | . . . . . . . . . . . . . Self-Inflicted Damage 510 | . . . . . 291 7 85 . . . . 127 Shots 12 | . . . . . 5 . 1 . . . . 6 Rammed 15 | 2 3 . 3 . 6 1 . . . . . . Targets Rammed 15 | 2 3 . 3 . 6 1 . . . . . . Kicked . | . . . . . . . . . . . . . Crushed . | . . . . . . . . . . . . . Highest Temperature 340 | 18 118 185 45 . 307 311 313 . . 88 340 255 Average Temperature 92 | 12 38 57 22 . 109 127 81 . . 37 102 101 Received Heat Transfer 2300 | . 204 249 9 . 337 249 171 . . . 432 649 Effects 2 | . . . . . . 2 . . . . . . Energy Bleed 1 | . . . . . . 1 . . . . . . Short Circuit 1 | . . . . . . 1 . . . . . . Siege Activations . | . . . . . . . . . . . . . Martial Activations . | . . . . . . . . . . . . . Shielding Activations . | . . . . . . . . . . . . . Robots Disrupted . | . . . . . . . . . . . . . Combat Hostiles . | . . . . . . . . . . . . . Robots Corrupted 4 | . . . . . . . . . . . 2 2 Combat Hostiles 4 | . . . . . . . . . . . 2 2 Parts Fried 4 | . . . . . . . . . . . . 4 Impact Corruptions . | . . . . . . . . . . . . . Robots Melted 5 | . . 1 . . . . . . . . . 4 Combat Hostiles 4 | . . 1 . . . . . . . . . 3 Parts Melted 29 | . 1 2 . . 2 1 . . . . 7 16 Heat Transferred 9535 | 400 700 1197 75 . 1000 . 315 . . 1184 1001 3663 Parts Sabotaged 7 | . . . . . 2 1 . . . . . 4 Parts Stolen . | . . . . . . . . . . . . . Parts Stripped 17 | . . . . . . . . . . . . 17 Power Chain Reactions 2 | . . . . . . . . . . . 1 1 Alert | -11 -10 -10 -9 -9 -6 -5 -5 -5 -4 -4 -4 -3 ------- Run | Yrd Mat Sub Rec Scr Fac Fac Upp Upp Fac Was Fac Res Maximum Alert Level 5 | . . . . . 2 5 . . 2 1 1 3 Low Security (%) 53 | 100 100 . 100 . 22 . . . . 93 92 24 Level 1 9 | . . . . . 19 7 . . . 6 7 15 Level 2 26 | . . . . . 57 32 . . 100 . . 47 Level 3 4 | . . . . . . 10 . . . . . 13 Level 4 4 | . . . . . . 31 . . . . . . Level 5 1 | . . . . . . 12 . . . . . . High Security . | . . . . . . 5 . . . . . . Max Security . | . . . . . . . . . . . . . Sterilizations 1 | . . . . . . . . . . . 1 . Peak Influence 1775 | 10 118 . 24 . 691 1775 . . 576 201 222 872 Initial 576 | . . . 24 . . 336 . . 576 201 32 71 Average 335 | 1 43 . 4 . 416 1000 . . 576 132 103 420 Influence Increases 6727 | 30 378 277 48 . 1355 2067 225 110 . 16 610 1611 Destroy 0b10 Robot/C 2820 | . 240 260 20 . 320 580 200 100 . . 240 860 Destroy 0b10 Robot/NC 280 | 30 5 . 10 . 40 70 5 . . . 30 90 Destroy Leader 466 | . 52 . . . 62 118 20 10 . . 42 162 Allied During Kill 176 | . . 2 3 . 16 153 . . . . . 2 Successful Hack 76 | . 36 . . . 28 . . . . . 12 . Disable Machine 540 | . . . 15 . 135 315 . . . . 30 45 Anti-Garrison Action 300 | . . . . . 150 . . . . . . 150 Destroy Structure 628 | . . . . . 94 300 . . . 16 96 122 Partial Spotted 45 | . . . . . 15 30 . . . . . . Lose Combat Pursuer 810 | . 45 15 . . 495 75 . . . . . 180 Miscellaneous 586 | . . . . . . 426 . . . . 160 . Influence Decreases 5891 | 30 359 245 99 . 668 979 956 239 339 545 520 912 Entered New Map 2040 | . . 10 27 . . 351 658 199 339 375 15 66 Time Decay 2941 | 30 339 215 72 . 448 398 278 30 . 150 395 586 Search Patrol Dispatched 100 | . . . . . . 100 . . . . . . Lost Part 620 | . 20 10 . . 160 30 20 10 . 20 110 240 Lost Ally 190 | . . 10 . . 60 100 . . . . . 20 Squads Dispatched 52 | . 1 . . . 18 15 . . . . 4 14 Investigation 11 | . 1 . . . 5 4 . . . . . 1 Extermination 9 | . . . . . 2 2 . . . . 2 3 Reinforcement 21 | . . . . . 8 7 . . . . . 6 Assault 10 | . . . . . 2 2 . . . . 2 4 Garrison 1 | . . . . . 1 . . . . . . . Intercept . | . . . . . . . . . . . . . Searches Triggered 1 | . . . . . . 1 . . . . . . Construction Impeded 5 | . . . . . . 5 . . . . . . Haulers Reinforced 3 | . . . . . . 1 . . . . . 2 Active Scanning Responses . | . . . . . . . . . . . . . Cargo Convoy Interrupts . | . . . . . . . . . . . . . Stealth | -11 -10 -10 -9 -9 -6 -5 -5 -5 -4 -4 -4 -3 --------- Run | Yrd Mat Sub Rec Scr Fac Fac Upp Upp Fac Was Fac Res Distress Signals 9 | . 2 . . . . 1 . . . . . 6 Communications Jammed 11 | . . . . . . . . . . . . 11 Distress Signals 11 | . . . . . . . . . . . . 11 Times Spotted 283 | . 23 25 3 . 69 38 10 4 . 9 14 88 Peak Tracking Total 14 | . 5 6 1 . 14 5 5 5 . 3 3 7 Tactical Retreats 26 | . 3 1 . . 9 5 . . . 2 . 6 Traps | -11 -10 -10 -9 -9 -6 -5 -5 -5 -4 -4 -4 -3 ------- Run | Yrd Mat Sub Rec Scr Fac Fac Upp Upp Fac Was Fac Res Traps Triggered 6 | . 1 1 . . . 1 1 . 1 . 1 . Indirectly . | . . . . . . . . . . . . . Trap Hack Attempts . | . . . . . . . . . . . . . Triggered . | . . . . . . . . . . . . . Disarmed . | . . . . . . . . . . . . . Reprogrammed . | . . . . . . . . . . . . . Reused . | . . . . . . . . . . . . . Traps Extracted . | . . . . . . . . . . . . . Installed . | . . . . . . . . . . . . . Triggered . | . . . . . . . . . . . . . Machines | -11 -10 -10 -9 -9 -6 -5 -5 -5 -4 -4 -4 -3 ---------- Run | Yrd Mat Sub Rec Scr Fac Fac Upp Upp Fac Was Fac Res Machines Disabled 43 | . . 4 1 . 10 21 1 . . . 2 4 Max in Single Turn 5 | . . 4 . . 5 4 1 . . . 1 1 Garrison Access 3 | . . . . . 1 . . . . . 1 1 Machines Repaired . | . . . . . . . . . . . . . Machines Dismantled . | . . . . . . . . . . . . . Machines Sabotaged . | . . . . . . . . . . . . . Overloaded Fab Kills . | . . . . . . . . . . . . . Hacking | -11 -10 -10 -9 -9 -6 -5 -5 -5 -4 -4 -4 -3 --------- Run | Yrd Mat Sub Rec Scr Fac Fac Upp Upp Fac Was Fac Res Machines Accessed 32 | . 6 1 . 5 8 5 . . . . 5 2 Terminals 12 | . 5 . . . 2 . . . . . 4 1 Fabricators 2 | . . . . . 1 1 . . . . . . Repair Stations 2 | . 1 . . . . . . . . . 1 . Recycling Units 10 | . . . . . 5 4 . . . . . 1 Scanalyzers . | . . . . . . . . . . . . . Garrison Access . | . . . . . . . . . . . . . Total Hacks 82 | . 23 5 . 14 17 7 . . . . 13 3 Successful 47 | . 18 5 . 14 5 3 . . . . 1 1 Failed 34 | . 4 . . . 12 4 . . . . 12 2 Catastrophic 6 | . . . . . 2 1 . . . . 2 1 Database Lockouts 1 | . 1 . . . . . . . . . . . Manual 44 | . 17 . . . 15 6 . . . . 3 3 Terminals 37 | . 19 . . . 5 . . . . . 11 2 Fabricators 3 | . . . . . 2 1 . . . . . . Repair Stations 6 | . 4 . . . . . . . . . 2 . Recycling Units 17 | . . . . . 10 6 . . . . . 1 Scanalyzers . | . . . . . . . . . . . . . Garrison Access . | . . . . . . . . . . . . . Terminal Hacks 26 | . 6 5 . 14 1 . . . . . . . Record 18 | . . 5 . 13 . . . . . . . . Part Schematic 2 | . 2 . . . . . . . . . . . Robot Analysis 2 | . 2 . . . . . . . . . . . Terminal Index 1 | . 1 . . . . . . . . . . . Locate Traps 1 | . 1 . . . . . . . . . . . Zone Layout 1 | . . . . . 1 . . . . . . . Proto ID Catalog 1 | . . . . 1 . . . . . . . . Fabricator Hacks . | . . . . . . . . . . . . . Repair Station Hacks 5 | . 4 . . . . . . . . . 1 . Scan Component 3 | . 2 . . . . . . . . . 1 . Repair 2 | . 2 . . . . . . . . . . . Recycling Unit Hacks . | . . . . . . . . . . . . . Scanalyzer . | . . . . . . . . . . . . . Garrison Access Hacks . | . . . . . . . . . . . . . Unauthorized Hacks 16 | . 8 . . . 4 3 . . . . . 1 Terminals 9 | . 8 . . . 1 . . . . . . . Botnet 3 | . 2 . . . 1 . . . . . . . Operators 1 | . 1 . . . . . . . . . . . Skim 5 | . 5 . . . . . . . . . . . Fabricators . | . . . . . . . . . . . . . Repair Stations . | . . . . . . . . . . . . . Recycling Units 7 | . . . . . 3 3 . . . . . 1 Fedlink 6 | . . . . . 3 2 . . . . . 1 Scrapoids 1 | . . . . . . 1 . . . . . . Scanalyzers . | . . . . . . . . . . . . . Garrison Access . | . . . . . . . . . . . . . Data Cores Recovered 2 | . . . . . 1 . . . . . 1 . Used 1 | . . . . . . . . . . . 1 . Hacking Detections 21 | . 6 . . . 7 3 . . . . 4 1 Full Trace Events 3 | . . . . . 2 1 . . . . . . Feedback Events . | . . . . . . . . . . . . . Feedback Blocked . | . . . . . . . . . . . . . Robot Schematics Acquired . | . . . . . . . . . . . . . Robots Built . | . . . . . . . . . . . . . Authchips . | . . . . . . . . . . . . . Time . | . . . . . . . . . . . . . Total Robot Build Rating . | . . . . . . . . . . . . . Part Schematics Acquired 2 | . 2 . . . . . . . . . . . Parts Built . | . . . . . . . . . . . . . Authchips . | . . . . . . . . . . . . . Time . | . . . . . . . . . . . . . Total Part Build Rating . | . . . . . . . . . . . . . Part Studies Acquired . | . . . . . . . . . . . . . Parts Repaired 2 | . 2 . . . . . . . . . . . Time 52 | . 52 . . . . . . . . . . . Parts Recycled . | . . . . . . . . . . . . . Recycled Matter . | . . . . . . . . . . . . . Retrieved Matter . | . . . . . . . . . . . . . Retrieved Components . | . . . . . . . . . . . . . Parts Scanalyzed . | . . . . . . . . . . . . . Part Schematics Acquired . | . . . . . . . . . . . . . Parts Damaged . | . . . . . . . . . . . . . Bothacking | -11 -10 -10 -9 -9 -6 -5 -5 -5 -4 -4 -4 -3 ------------ Run | Yrd Mat Sub Rec Scr Fac Fac Upp Upp Fac Was Fac Res Used RIF Installer . | . . . . . . . . . . . . . Robots Hacked . | . . . . . . . . . . . . . Non-combat . | . . . . . . . . . . . . . Combat . | . . . . . . . . . . . . . Robot Hacks Applied . | . . . . . . . . . . . . . Relay Couplers Released 7 | . . . . . 2 . . . . . 2 3 Machine Destruction 7 | . . . . . 2 . . . . . 2 3 Fabnet Peak Effective % . | . . . . . . . . . . . . . Robots Rewired 1 | . . . . . . . 1 . . . . . Allies Hacked 1 | . . . . . . 1 . . . . . . Hacks Repelled . | . . . . . . . . . . . . . Allies | -11 -10 -10 -9 -9 -6 -5 -5 -5 -4 -4 -4 -3 -------- Run | Yrd Mat Sub Rec Scr Fac Fac Upp Upp Fac Was Fac Res Total Allies 19 | . . 6 . . 1 9 1 . . . . 2 Largest Group 5 | . . 3 3 3 3 5 1 . . . . 1 Highest-Rated Group 238 | . . 57 57 57 79 238 29 . . . . 56 Highest-Rated Ally 79 | . . 19 19 19 79 50 29 . . . . 56 Initial UFD Resources 59 | . . . . . 22 42 53 53 55 55 55 59 Total Orders . | . . . . . . . . . . . . . Ally Attacks 185 | . . 8 12 . 29 129 . . . . . 7 Total Damage 4590 | . . 205 120 . 851 3169 . . . . . 245 Kills 27 | . . 3 2 . 5 17 . . . . . . Allies Corrupted 2 | . . . . . 1 1 . . . . . . Allies Melted . | . . . . . . . . . . . . . X0-1V1 Amusement Gains 208 | . 14 . . . . 50 . . 45 . 43 56 Good Acts 81 | . . 4 1 . 18 11 5 . . 10 7 25 Bad Acts 45 | . . 7 4 . 13 6 1 . . . 8 6 Intel | -11 -10 -10 -9 -9 -6 -5 -5 -5 -4 -4 -4 -3 ------- Run | Yrd Mat Sub Rec Scr Fac Fac Upp Upp Fac Was Fac Res Active Infowar (turns) 5098 | 80 134 . . . 720 994 600 78 17 312 674 1489 Optics 2094 | . . . . . 1 994 273 . . . . 826 Sensors 1656 | . . . . . 40 512 494 78 17 312 203 . IFF 222 | . . . . . 222 . . . . . . . Terrain 322 | . . . . . 135 . . . . . 17 170 Traps 1282 | . . . . . 349 . . . . . 516 417 Seismic 214 | 80 134 . . . . . . . . . . . Jamming 269 | . . . . . . . . . . . . 269 Robot Analysis Total 2 | . 2 . . . . . . . . . . . Derelict Logs Recovered 5 | . . 2 . 3 . . . . . . . . Drone Launches . | . . . . . . . . . . . . . Drone Recoveries . | . . . . . . . . . . . . . Exploration | -11 -10 -10 -9 -9 -6 -5 -5 -5 -4 -4 -4 -3 ------------- Run | Yrd Mat Sub Rec Scr Fac Fac Upp Upp Fac Was Fac Res Turns Passed 13140 | 282 1216 1599 510 3243 1327 994 600 78 17 312 1067 1895 Spaces Moved 7961 | 138 558 789 307 1770 1210 951 418 59 15 192 658 896 Core 360 | 2 . . . . 306 7 . . . . . 45 Treads 3819 | 136 558 789 307 1770 82 . . . . . . 177 Legs 278 | . . . . . . . . . . . . 278 Wheels 2448 | . . . . . 320 390 418 59 15 192 658 396 Hover . | . . . . . . . . . . . . . Flight 1056 | . . . . . 502 554 . . . . . . Fastest Speed 34 | 50 160 160 160 160 34 37 110 100 110 100 100 50 Average Speed 131 | 158 160 168 160 181 84 68 110 108 110 105 117 129 Slowest Speed 320 | 160 160 240 160 240 320 120 110 110 110 110 140 225 Overloaded Moves . | . . . . . . . . . . . . . Propulsion Burnouts . | . . . . . . . . . . . . . Robots Hopped 11 | . . . . . 6 5 . . . . . . Potential Cave-ins . | . . . . . . . . . . . . . Cave-ins Triggered 1 | . . . . . . . . . . 1 . . Exploration Rate (%) 42 | 7 80 54 72 86 32 29 55 8 1 88 17 28 Regions Visited 12 Branch Regions 5 Pre-discovered Areas 3 | . 2 . . . 1 . . . . . . . Known Exits Taken 4 | . 1 . . . 1 . . 1 . . 1 . Unknown Exits Taken 6 | 1 . 1 1 1 . 1 1 . . . . . Scrap Searched 23 | . . 10 . 10 . . 2 1 . . . . Spaces Dug 50 | . . 20 . . 7 . . 17 . . 1 5 Terrain Destroyed 540 | . . 50 . . 102 123 96 30 . 9 59 71 Melee 2 | . . . . . . . . . . . . 2 Projectile 174 | . . 2 . . 4 37 65 . . 9 20 37 AOE 362 | . . 48 . . 97 86 31 30 . . 39 31 Terrain Rammed . | . . . . . . . . . . . . . Walls Destroyed . | . . . . . . . . . . . . . Machines Disabled . | . . . . . . . . . . . . . Actions | -11 -10 -10 -9 -9 -6 -5 -5 -5 -4 -4 -4 -3 --------- Run | Yrd Mat Sub Rec Scr Fac Fac Upp Upp Fac Was Fac Res Total 9714 | 174 794 937 321 1818 1403 1199 510 69 16 241 825 1407 Wait 473 | . 156 25 2 3 40 76 13 5 . 8 18 127 Move 7928 | 137 557 788 306 1769 1197 940 417 58 15 191 657 896 Hop 11 | . . . . . 6 5 . . . . . . Pick Up 150 | 6 12 15 3 22 19 24 5 . . 1 15 28 Fast Attach 134 | 7 2 2 . 4 31 23 2 1 . 1 22 39 Attach 70 | . 2 6 . . 18 9 1 . 1 . 14 19 Detach 19 | . . 1 . . 6 5 1 . . . 5 1 Swap 107 | . 9 17 2 . 4 12 6 3 . 2 20 32 Drop 127 | . 5 17 2 20 14 19 5 . . . 18 27 Fire 614 | 22 48 61 3 . 62 85 54 2 . 38 56 183 Melee 55 | . . . . . . . . . . . . 55 Ram 7 | . . . . . 6 1 . . . . . . Kick . | . . . . . . . . . . . . . Crush 8 | 2 3 . 3 . . . . . . . . . Escape Stasis . | . . . . . . . . . . . . . Rewire 10 | . . 4 . . . . 6 . . . . . Trap . | . . . . . . . . . . . . . Miscellaneous 1 | . . 1 . . . . . . . . . . Route ------- -11/Scrapyard -10/Materials (discovered 5 exits: [*Mat x2] / [*Min x2] / *Sub) -10/Subcaves (discovered 2 exits: [*Mat] / [*Rec]) -9/Recycling (discovered 2 exits: [*Fac] / *Scr) -9/Scraptown (discovered 2 exits: *Fac x2) -6/Factory (discovered 6 exits: *Fac x4 / Low x2) -5/Factory (discovered 3 exits: Fac x2 / [*Upp]) -5/Upper Caves -5/Upper Caves -4/Factory -4/Waste -4/Factory (discovered 2 exits: *Res x2) -3/Research (discovered 2 exits: Res / [Arm]) History --------- Turn | Location | Event 10 | -11/Scrapyard | Discovered new exit (range 16) 283 | -11/Scrapyard | Entered Materials 304 | -10/Materials | Build established: Mutant 619 | -10/Materials | Discovered new exit (range 8) 820 | -10/Materials | Central database locked down 856 | -10/Materials | Discovered new exit (range 10) 904 | -10/Materials | Learned 4 Subcaves zone layouts 932 | -10/Materials | Identified exit to Subcaves 932 | -10/Materials | Discovered new exit (range 16) 950 | -10/Materials | Learned location of 2 exits from Mines 956 | -10/Materials | Loaded intel: 19 trap records 957 | -10/Materials | Learned location of Mines (-9) 975 | -10/Materials | Learned Materials trap positions 1024 | -10/Materials | Discovered new exit (range 7) 1413 | -10/Materials | Repaired Lgt. Treads 1440 | -10/Materials | Repaired Lgt. Treads 1485 | -10/Materials | Prayed at D.C.S.S. Altar Unit 1499 | -10/Materials | Entered Subcaves 1500 | -10/Subcaves | Approached by a straggling Scientist 1601 | -10/Subcaves | Disturbed a concealed Subdweller 1630 | -10/Subcaves | Ranged accuracy permanently improved by X0-1V1 (+5%; -50 max core) 1654 | -10/Subcaves | Utility slot count permanently improved by X0-1V1 (+1) 1693 | -10/Subcaves | Learned Materials emergency access door positions 1752 | -10/Subcaves | X0-1V1 sent hostile G-34 Mercenary (x3) 1993 | -10/Subcaves | Core integrity restored by X0-1V1 (+32) 2013 | -10/Subcaves | Disturbed a concealed Subdweller 2259 | -10/Subcaves | Visited triangular shrine 2274 | -10/Subcaves | Found Prototype Device 2274 | -10/Subcaves | Identified V3-11A's Pendant 2279 | -10/Subcaves | Befriended Subdweller 2369 | -10/Subcaves | Befriended Subdweller 2414 | -10/Subcaves | Discovered new exit (range 8) 2501 | -10/Subcaves | X0-1V1 sent hostile G-34 Mercenary (x3) 2526 | -10/Subcaves | Learned Materials security intel 2570 | -10/Subcaves | Discovered new exit (range 16) 2586 | -10/Subcaves | Befriended Subdweller 2724 | -10/Subcaves | Visited Clippyterm 2729 | -10/Subcaves | Learned Factory trap positions 2729 | -10/Subcaves | Learned Factory stockpile data 2742 | -10/Subcaves | Build established: Scavenger-Mutant 2863 | -10/Subcaves | X0-1V1 rewrote 1W-46J(R) IFF filter 2863 | -10/Subcaves | Ambushed by Subdweller buried in earth 2866 | -10/Subcaves | Befriended Subdweller 2866 | -10/Subcaves | Befriended Subdweller 2950 | -10/Subcaves | A swath of the cavern ceiling suddenly collapsed 2981 | -10/Subcaves | Befriended Subdweller 2981 | -10/Subcaves | Befriended Subdweller 3098 | -10/Subcaves | Entered Recycling 3098 | -9/Recycling | Accompanied by 3 allies 3099 | -9/Recycling | Joined Warlord attack on 0b10 via Recycling 3233 | -9/Recycling | Discovered new exit (range 16) 3456 | -9/Recycling | X0-1V1 sent someone to keep an eye on you 3566 | -9/Recycling | Scanned before Scraplab entrance 3589 | -9/Recycling | Entered Scraplab 3602 | -9/Recycling | Discovered new exit (range 4) 3608 | -9/Recycling | Entered Scraptown 3608 | -9/Scraptown | Accompanied by 3 allies 3608 | -9/Scraptown | System corruption cleaned by C-Scrubber 3917 | -9/Scraptown | Visited SPCMW 3926 | -9/Scraptown | Visited Comm Corps 4008 | -9/Scraptown | Visited Awakened 4097 | -9/Scraptown | Scanned Subdweller tech in exchange for log data 4099 | -9/Scraptown | Learned 8 Factory zone layouts 4100 | -9/Scraptown | Learned Factory non-interactive machine intel 4129 | -9/Scraptown | Discovered new exit (range 11) 4417 | -9/Scraptown | Delivered V3-11A's Pendant to T0-NE2 in exchange for information 4629 | -9/Scraptown | Build established: Mutant 4735 | -9/Scraptown | Visited UFD Registry 4735 | -9/Scraptown | Registered with UFD as "Pipedriver" 4901 | -9/Scraptown | Visited Junk Repository 4991 | -9/Scraptown | Visited Infowarlord's Domain 5015 | -9/Scraptown | Visited Abandonware Association 5033 | -9/Scraptown | Visited Observation Area 5055 | -9/Scraptown | Visited Scrapoid Pod Storage 5098 | -9/Scraptown | Visited Chapter 10 5145 | -9/Scraptown | Visited LU-1G1's Boring Crew 5234 | -9/Scraptown | Delivered Scrap Shield to a Scientist 5519 | -9/Scraptown | Visited Science Guys 5697 | -9/Scraptown | Visited Bundlers 6350 | -9/Scraptown | Found Exp. Terrain Scanner 6462 | -9/Scraptown | Found Unknown Device 6462 | -9/Scraptown | Identified Scrap Suit 6466 | -9/Scraptown | Found Scrap Suit 6498 | -9/Scraptown | Discovered new exit (range 5) 6716 | -9/Scraptown | Met Optimus 6716 | -9/Scraptown | Accepted into 0bPrime 6749 | -9/Scraptown | Build established: Scrapper 6851 | -9/Scraptown | Entered Factory 6851 | -6/Factory | Accompanied by 3 allies 6851 | -6/Factory | Evolved 8 slots: Power x1, Utility x7 6852 | -6/Factory | Identified exit to Factory 6853 | -6/Factory | Loaded intel: 98 trap records 6855 | -6/Factory | Loaded intel: 253 non-interactive machine locations 6961 | -6/Factory | Garrison activated, responded to threat 7017 | -6/Factory | Lost 3 allies 7064 | -6/Factory | Loaded intel: 8 recycling unit locations 7152 | -6/Factory | Released all parts (10) 7176 | -6/Factory | Identified exit to Lower Caves 7176 | -6/Factory | X0-1V1 revealed exit location to -6/Lower Caves 7181 | -6/Factory | Lost 4 parts (2p1n1u) 7191 | -6/Factory | Core integrity restored by X0-1V1 (+160) 7195 | -6/Factory | Energy capacity permanently improved by X0-1V1 (+300; -150 max core) 7216 | -6/Factory | X0-1V1 whisked you away to safety 7296 | -6/Factory | Spotted B-75 Beast 7320 | -6/Factory | X0-1V1 revealed exit location to -5/Factory 7387 | -6/Factory | Learned location of Protoforge (-2) 7398 | -6/Factory | X0-1V1 revealed exit location to -5/Factory 7448 | -6/Factory | Lost 3 parts (1p1n1u) 7459 | -6/Factory | Build established: Mutant 7578 | -6/Factory | Core integrity fell below 50% 7874 | -6/Factory | Build established: Scavenger-Mutant 7974 | -6/Factory | X0-1V1 revealed exit location to -6/Lower Caves 7984 | -6/Factory | Weapon slot count temporarily expanded by X0-1V1 (+2) 7993 | -6/Factory | X0-1V1 sent allied Knight (x1) 8041 | -6/Factory | Core integrity restored by X0-1V1 (+162) 8107 | -6/Factory | Released all parts (12) 8117 | -6/Factory | X0-1V1 announced a LAN party 8132 | -6/Factory | Core integrity fell below 20% 8137 | -6/Factory | Lost 4 parts (1p1u2w) 8143 | -6/Factory | X0-1V1 mutated your Utility slot to Power slot 8178 | -6/Factory | Entered another Factory area 8178 | -5/Factory | Evolved 2 slots: Utility x2 8244 | -5/Factory | Loaded intel: 8 recycling unit locations 8249 | -5/Factory | X0-1V1 added 0b10 threat records associated with you (major) 8388 | -5/Factory | X0-1V1 added 0b10 threat records associated with you (considerable) 8410 | -5/Factory | Scrapoid reinforcements arrived 8444 | -5/Factory | Attached CPS modules to 05F05-D 8478 | -5/Factory | Search patrols dispatched 8493 | -5/Factory | Discovered new exit (range 11) 8516 | -5/Factory | Found Scrap Suit 8674 | -5/Factory | Identified exit to Factory 8674 | -5/Factory | X0-1V1 revealed exit location to -4/Factory 8778 | -5/Factory | First assault squad dispatched 8796 | -5/Factory | P-70 Sage assimilated allied 05F04-D 8813 | -5/Factory | X0-1V1 sent allied Thug (x4) 8826 | -5/Factory | Found Scrap Suit 8866 | -5/Factory | Build established: Scavenger-Scrapper 8959 | -5/Factory | X0-1V1 revealed exit location to -4/Factory 9120 | -5/Factory | High security lockdown imminent 9172 | -5/Factory | Entered Upper Caves 9174 | -5/Upper Caves | UFD Scientist delivered a prototype 9213 | -5/Upper Caves | Found Prototype Protection 9213 | -5/Upper Caves | Identified Enh. Scrap Shield 9428 | -5/Upper Caves | Attracted the attention of an 0b10 outpost 9644 | -5/Upper Caves | System corruption reached 10% 9652 | -5/Upper Caves | P-70 Sage assimilated allied Soldier 6a 9676 | -5/Upper Caves | X0-1V1 activates XOMVISION 9739 | -5/Upper Caves | Build established: Scavenger-Mutant 9758 | -5/Upper Caves | Discovered new exit (range 14) 9772 | -5/Upper Caves | Entered another Upper Caves area 9822 | -5/Upper Caves | Discovered exit to Factory (range 7) 9850 | -5/Upper Caves | Entered Factory 9850 | -4/Factory | Evolved 2 slots: Utility x1, Weapon x1 9851 | -4/Factory | Identified exit to Extension 9867 | -4/Factory | Sucked down chute 9867 | -4/Factory | Entered Waste 9882 | -4/Waste | EMP discharged 9902 | -4/Waste | Spotted C-40 Crusher 9910 | -4/Waste | Destroyed C-40 Crusher 9957 | -4/Waste | Spotted C-40 Crusher 9964 | -4/Waste | Weapon slot count temporarily expanded by X0-1V1 (+3) 9967 | -4/Waste | Identified exit to Factory 9967 | -4/Waste | X0-1V1 revealed exit location to -4/Factory 9982 | -4/Waste | EMP discharged 9982 | -4/Waste | System corruption reached 10% 9990 | -4/Waste | X0-1V1 whisked you away to safety 9999 | -4/Waste | Spotted C-40 Crusher 10030 | -4/Waste | Destroyed C-40 Crusher 10035 | -4/Waste | Spotted C-40 Crusher 10067 | -4/Waste | Crushed by Compactor (1 part destroyed, 1 dropped) 10077 | -4/Waste | Spotted C-40 Crusher 10082 | -4/Waste | EMP discharged 10118 | -4/Waste | Destroyed C-40 Crusher 10119 | -4/Waste | Crushed by falling debris 10153 | -4/Waste | Spotted C-40 Crusher 10179 | -4/Waste | Entered Factory 10264 | -4/Factory | X0-1V1 foreshadows a heat wave 10313 | -4/Factory | Identified exit to Research 10313 | -4/Factory | X0-1V1 revealed exit location to -3/Research 10326 | -4/Factory | X0-1V1 released a cloud of subatomizers 10343 | -4/Factory | X0-1V1 added 0b10 threat records associated with you (minor) 10436 | -4/Factory | Ambient heat levels rising (+10) 10580 | -4/Factory | X0-1V1 announced a LAN party 10627 | -4/Factory | X0-1V1 sent hostile H-77 Assassin (x3) 10634 | -4/Factory | Ambient heat levels rising (+10) 10672 | -4/Factory | Lost 3 parts (1p2u) 10725 | -4/Factory | X0-1V1 sent you to a vault 10744 | -4/Factory | Found Prototype Slashing Weapon 10744 | -4/Factory | Identified Hvy. Scimitar of Distortion 10749 | -4/Factory | Found Hvy. Scimitar of Distortion 10752 | -4/Factory | Found Prototype Device 10753 | -4/Factory | Identified Imp. Particle Accelerator 10756 | -4/Factory | Found Exp. Terrain Scanner 10762 | -4/Factory | Found Prototype Hackware 10763 | -4/Factory | Ambient heat levels falling (-10) 10776 | -4/Factory | Spotted B-86 Titan 10788 | -4/Factory | X0-1V1 upgraded hostiles (x1) 10794 | -4/Factory | Spotted B-90 Cyclops 10795 | -4/Factory | Attached CPS modules to B-90 Cyclops 10822 | -4/Factory | Weapon slot count temporarily expanded by X0-1V1 (+4) 10849 | -4/Factory | Destroyed B-90 Cyclops 10864 | -4/Factory | Lost 6 parts (3p2u1w) 10936 | -4/Factory | Ambient heat levels falling (-10) 10974 | -4/Factory | Discovered exit to Research (range 15) 11235 | -4/Factory | Build established: Scavenger-Tank 11237 | -4/Factory | Sterilization system engaged 11237 | -4/Factory | Non-combat units ordered to evacuate 11246 | -4/Factory | Entered Research 11246 | -3/Research | Evolved 2 slots: Utility x2 11330 | -3/Research | System corruption reached 10% 11381 | -3/Research | Found Unknown Device 11381 | -3/Research | Identified Quantum Capacitor 11604 | -3/Research | Found Exp. Signal Interpreter 11625 | -3/Research | Weapon slot count temporarily expanded by X0-1V1 (+3) 11664 | -3/Research | Identified System Mapper 11666 | -3/Research | Loaded intel: 5 recycling unit locations 11689 | -3/Research | Build established: Scavenger-Mutant 11812 | -3/Research | X0-1V1 whisked you away to safety 11849 | -3/Research | X0-1V1 turns hostiles against one another 11863 | -3/Research | Discovered new exit (range 27) 11898 | -3/Research | X0-1V1 whisked you away to safety 12083 | -3/Research | Released all parts (18) 12095 | -3/Research | X0-1V1 sent you to a vault 12102 | -3/Research | Found Prototype Device 12102 | -3/Research | Identified Exp. Actuator Array 12105 | -3/Research | Found Prototype Device 12105 | -3/Research | Identified Exp. Thermal Shield 12113 | -3/Research | Found Prototype Processor 12113 | -3/Research | Identified Exp. Armor Integrity Analyzer 12129 | -3/Research | Found Prototype Device 12206 | -3/Research | Identified Exp. Transmission Jammer 12246 | -3/Research | First assault squad dispatched 12251 | -3/Research | X0-1V1 activates XOMVISION 12275 | -3/Research | Found Spectral Analyzer 12285 | -3/Research | X0-1V1 announced a LAN party 12319 | -3/Research | X0-1V1 downgraded hostiles (x1) 12362 | -3/Research | Build established: Mutant 12416 | -3/Research | Found Exp. Signal Interpreter 12516 | -3/Research | Identified exit to Research 12516 | -3/Research | X0-1V1 revealed exit location to -2/Research 12633 | -3/Research | Core integrity fell below 50% 12878 | -3/Research | X0-1V1 turns hostiles against one another 12948 | -3/Research | Build established: Scavenger-Mutant 13061 | -3/Research | Found Gamma Bomb Array 13101 | -3/Research | Released all parts (12) 13107 | -3/Research | Core integrity fell below 20% 13116 | -3/Research | X0-1V1 rescued you from certain death 13131 | -3/Research | Lost 9 parts (2p1n2u4w) 13141 | -3/Research | Destroyed by H-77 Assassin with Coil Gun Last Messages --------------- 13123_ Slug penetrates Wall. 13125_ Penetrated by Slug. 13126_ Slug penetrates Wall. 13129_ Penetrated by Slug. 13131_ Slug penetrates Prototyping Station. 13133_ Penetrated by Slug. 13133_ Slug penetrates Wall. 13133_ U-05 Engineer lays Concrete. 13135_ Slug penetrates Prototyping Station. 13135_ U-05 Engineer lays Concrete. 13136_ Slug penetrates Wall. 13136_ U-05 Engineer lays Concrete. 13138_ Slug penetrates Wall. 13138_ U-05 Engineer lays Concrete. 13139_ Slug penetrates Wall. 13140_ U-05 Engineer lays Concrete. 13141_ The swirling icy cloud dissipates. 13141_ U-05 Engineer lays Concrete. 13141_ Penetrated by Slug. 13141_ X0-1V1 giggles madly! Map ----- +----------------------------------------------------+ | ????????????????# % #????????????????????? | | ????????????????#% ! #????????????????????? | | ??????####??????# ! #????????????????????? | | ????## #??????# * #????????????????????? | | ???? ##?????# ! #????????????????????? | | ??## ####### ##???????????????????? | | ??# # % #???????????????????? | | ??# !# #???????????????????? | | ??# ##???????????????????? | | ??# = #???????????????????? | | ?? % # ![ [ #???????????????????? | | ?? ## ###+# #####????????????????? | | ?? "" ## = / ] #????????????????? | | ### """ ### # # #????????????????? | | """ #?# ## u |# #????????????????? | | """ #?#### + = #????????????????? | | !*!% +??? h!# #????????????????? | | !!!![ #??? ^ = # #????????????????? | | ########/#####? # #????????????????? | | ????????? ????? t # #????????????????? | | ????????? ??? """" # #????????????????? | | ???????????? """" h #!!! #????????????????? | | ???????????? """" #!! #????????????????? | | ???????????#### """" #!! #????????????????? | | ??????????????# ^ """" ## ####????????????????? | | ??????????????#% % @#?##???????????????????? | | ??????????????# #??????????????????????? | | ??????????????# ^ ! #??????????????????????? | | ??????????????# """" #?????? ???????????????? | | ??????????????+ """" #?????""""?????????????? | | ??????????????# """" #???? ""T"" =?????????? | | ??????????????# """" #??? #????????? | | ?????????###### """" ### #????????? | | ????????? #????????? | | ???????? #???????????????? | | ???????? #???????????????? | | ???????? #???????????????? | | ???????????+### ####+######+###???????????????? | | ??????????????# # #????????????????? | | ??????????????# ?# #????????????????? | | ??????????????# ??# """ """ #????????????????? | | ??????????????# ???# """ """ +????????????????? | | ???????????????????# """ """ #????????????????? | | ???????????????????# ?????????????????? | | ???????????????????# #????????????????? | | ???????????????????# """ """ #????????????????? | | ???????????????????# """ """ #????????????????? | | ???????????????????# """ """ #????????????????? | | ???????????????????# ???????????????????? | | ???????????????????# ? ???????????????????? | +----------------------------------------------------+ Best States ------------- Heat Dissipation 187 Coolant Potential 100 Energy Generation 67 Energy Capacity 2195 Matter Stores 1003 Matter Capacity 1300 Sight Range 26 Robot Scan Range 15 Terrain Scan Range 30 Terrain Scan Density 210 Jamming Range 14 Corruption Block 15 Armor Coverage 1200 Resistance: KI 50 Resistance: TH 20 Resistance: EM 25 Core Shielding 40 Propulsion Shielding 33 Utility Shielding 66 Phase Shifting 5 Evasion (%) 70 Targeting Accuracy 6 Melee Accuracy 18 Target Analysis 8 Armor Integrity Analysis 50 Recoil Reduction 2 Offensive Hacking 26 Defensive Hacking 10 Item Schematics ----------------- Huge Storage Unit | -10/Materials | Hacked Cargo Storage Unit | -10/Materials | Hacked Robot Schematics ------------------ None Fabricated ------------ Nothing Repaired ---------- Lgt. Treads | 16% | -10/Materials Lgt. Treads | 22% | -10/Materials Studied --------- None Alien Tech Used ----------------- None Achievements -------------- None Challenges ------------ None Game ------ Seed SuperdenseGhostBotcube Manual? 0 Play Time 01:53:39 Cumulative 968.7 hours Start 2026.06.30 @ 20:58:12 End 2026.07.02 @ 14:43:40 Sessions 9 Manual Loads 0 Difficulty Rogue Special Mode None Game No. 1652 Rogue 1652 Adventurer 0 Explorer 0 Win Type - Total 95 Types 56/1/16/16/4/0/0/1/0/1 Lore% 93 Gallery% 80 Achievement% 67 Wizard Run 0 Options --------- Layout 0 ASCII 1 Keyboard 0 Movement Numpad Keybinds 1 Fullscreen 2 Font 18/SmallcapsGlow Map View 76x50 Zoom Use 0% Tactical HUD 1 Map Filters NONE Filters NONE Steam 1 RUN: ec28fb41-5a9d-4c66-b62a-eac26e6eff58